bitfinex/quotes_BTCUSD_20240727
["timestamp","ask_amount","ask_price","bid_price","bid_amount"]
[1722098161154,0.0227324,69050.0,69049.0,0.289649]
[1722098161377,0.01516159,69071.0,69050.0,0.1443]
[1722098161591,0.289599,69061.0,69057.0,0.0632]
[1722098161797,0.144805,69058.0,69057.0,0.0632]
[1722098162045,0.434416,69058.0,69057.0,0.0632]
[1722098162694,0.724027,69058.0,69057.0,0.0632]
[1722098163254,1.013638,69058.0,69057.0,0.0632]
[1722098163651,0.434499,69045.0,69044.0,0.007]
[1722098163853,0.289666,69045.0,69039.0,0.000924]
[1722098164060,0.144835,69044.0,69040.0,0.00062003]
[1722098164214,0.144835,69044.0,69042.0,0.0632]
[1722098164416,0.144835,69044.0,69041.0,0.0811]
[1722098164417,0.144835,69044.0,69043.0,0.00062003]
[1722098164643,0.289654,69048.0,69043.0,0.0632]
[1722098164847,0.02273208,69044.0,69043.0,0.208037]
[1722098165048,0.02273208,69044.0,69043.0,0.497711]
[1722098165249,0.02273208,69044.0,69043.0,0.578811]
[1722098165848,0.144818,69052.0,69043.0,0.302674]
[1722098166214,0.289617,69057.0,69050.0,0.0632]
[1722098166367,0.144816,69053.0,69051.0,0.0811]
[1722098166537,0.289625,69055.0,69052.0,0.0632]
[1722098166734,0.144814,69054.0,69052.0,0.0632]
[1722098166963,0.144816,69053.0,69052.0,0.0632]
[1722098167732,0.72408,69053.0,69052.0,0.0632]
[1722098167877,0.434448,69053.0,69052.0,0.0632]
[1722098168334,0.434448,69053.0,69052.0,0.0742]
[1722098169122,0.45717875,69053.0,69052.0,0.08185302]
[1722098169513,0.435448,69053.0,69052.0,0.09085302]
[1722098172803,0.16854683,69053.0,69052.0,0.09085302]
[1722098173023,0.02373083,69053.0,69052.0,0.09085302]
[1722098173193,0.02373083,69053.0,69052.0,0.0832]
[1722098173449,0.02373083,69053.0,69052.0,0.309418]
[1722098173644,0.02373083,69053.0,69052.0,0.17208721]
[1722098173858,0.02373083,69053.0,69052.0,0.31690521]
[1722098174030,0.02373083,69053.0,69052.0,0.60654121]
[1722098174620,0.02373083,69053.0,69052.0,0.17208721]
[1722098175043,0.02373083,69053.0,69052.0,0.31690521]
[1722098175360,0.001,69053.0,69052.0,0.31690521]
[1722098175759,0.001,69053.0,69052.0,0.17208721]
[1722098176767,0.001,69053.0,69052.0,0.31690521]
[1722098176968,0.001,69053.0,69052.0,0.60654121]
[1722098177382,0.001,69053.0,69052.0,0.31690521]
[1722098177799,0.02373133,69053.0,69052.0,0.31690521]
[1722098178220,0.001,69053.0,69052.0,0.31690521]
[1722098178501,0.001,69053.0,69052.0,0.17208721]
[1722098181260,0.02373146,69053.0,69052.0,0.17208721]
[1722098182784,0.02373146,69053.0,69052.0,0.89617721]
[1722098183195,0.02373146,69053.0,69052.0,0.98087721]
[1722098183397,0.001,69053.0,69052.0,0.98087721]
[1722098183598,0.001,69053.0,69052.0,0.96987721]
[1722098183801,0.144799,69061.0,69054.0,0.289626]
[1722098183967,0.144802,69060.0,69058.0,0.0663]
[1722098184173,0.144801,69061.0,69059.0,0.0814]
[1722098184410,0.144801,69060.0,69059.0,0.15517751]
[1722098185347,0.434404,69060.0,69059.0,0.15517751]
[1722098185477,0.724007,69060.0,69059.0,0.15517751]
[1722098185679,0.724007,69060.0,69059.0,0.1477]
[1722098186527,0.434404,69060.0,69059.0,0.1477]
[1722098186683,0.434404,69060.0,69059.0,0.15617751]
[1722098186684,0.144801,69060.0,69059.0,0.15617751]
[1722098186880,0.144801,69060.0,69059.0,0.1487]
[1722098187408,0.144801,69060.0,69059.0,0.1537]
[1722098187607,0.144801,69060.0,69059.0,0.16117751]
[1722098188009,0.434404,69060.0,69059.0,0.16117751]
[1722098188213,0.144801,69060.0,69059.0,0.16117751]
[1722098188415,0.144801,69060.0,69059.0,0.1537]
[1722098188615,0.144801,69060.0,69059.0,0.16117751]
[1722098190076,0.145639,69062.0,69059.0,0.16117751]
[1722098190228,0.00084,69062.0,69060.0,0.1448]
[1722098190436,0.00084,69062.0,69061.0,0.0615]
[1722098190649,0.0235696,69062.0,69061.0,0.06897517]
[1722098191005,0.0235696,69062.0,69061.0,0.58657317]
[1722098191205,0.00084,69062.0,69061.0,0.58657317]
[1722098191408,0.00084,69062.0,69061.0,0.87617217]
[1722098191744,0.00084,69062.0,69061.0,1.16877117]
[1722098192902,0.00084,69062.0,69061.0,1.34804074]
[1722098193129,0.00084,69062.0,69061.0,1.49136515]
[1722098193453,0.00084,69062.0,69061.0,1.50236515]
[1722098193669,0.00084,69062.0,69061.0,1.36804074]
[1722098193833,0.00084,69062.0,69061.0,1.38104074]
[1722098194037,0.00084,69062.0,69061.0,1.34210263]
[1722098194212,0.00084,69062.0,69061.0,1.19478117]
[1722098194659,0.00084,69062.0,69061.0,1.22278117]
[1722098198766,0.02356453,69062.0,69061.0,1.20878117]
[1722098199177,0.00184,69062.0,69061.0,1.22278117]
[1722098199372,0.00184,69062.0,69061.0,1.20878117]
[1722098200279,0.00184,69062.0,69061.0,1.22278117]
[1722098202465,0.02456452,69062.0,69061.0,1.22278117]
[1722098203932,0.00184,69062.0,69061.0,1.22278117]
[1722098204136,0.00184,69062.0,69061.0,1.89733974]
[1722098204447,0.00184,69062.0,69061.0,1.72806194]
[1722098204647,0.00184,69062.0,69061.0,2.01766094]
[1722098206153,0.00184,69062.0,69061.0,1.51636194]
[1722098206701,0.00184,69062.0,69061.0,1.51635943]
[1722098206920,0.00184,69062.0,69061.0,1.80595843]
[1722098207155,0.00184,69062.0,69061.0,1.51635943]
[1722098207578,0.00184,69062.0,69061.0,1.80595843]
[1722098207783,0.00184,69062.0,69061.0,1.51635943]
[1722098209293,0.00184,69062.0,69061.0,1.80595843]
[1722098209491,0.00184,69062.0,69061.0,1.51635943]
[1722098210017,0.00184,69062.0,69061.0,1.39604074]
[1722098210171,0.00184,69062.0,69061.0,1.80595666]
[1722098210373,0.02456288,69062.0,69061.0,1.80595666]
[1722098210776,0.02456288,69062.0,69061.0,2.09555566]
[1722098211078,0.02456288,69062.0,69061.0,1.80595666]
[1722098211408,0.02456288,69062.0,69061.0,2.09555566]
[1722098211577,0.02456288,69062.0,69061.0,1.80595666]
[1722098212264,0.02456288,69062.0,69061.0,1.79195666]
[1722098212508,0.02356288,69062.0,69061.0,1.77795666]
[1722098212698,0.02456288,69062.0,69061.0,1.80595666]
[1722098212932,0.02456288,69062.0,69061.0,1.65569709]
[1722098213137,0.02456288,69062.0,69061.0,1.32909809]
[1722098213472,0.02456288,69062.0,69061.0,1.49838117]
[1722098213688,0.00184,69062.0,69061.0,1.19377217]
[1722098214869,0.00184,69062.0,69061.0,1.22278217]
[1722098215083,0.0245644,69062.0,69061.0,1.22278217]
[1722098215282,0.0245644,69062.0,69061.0,1.19377217]
[1722098215697,0.0245644,69062.0,69061.0,1.22278217]
[1722098216312,0.0245644,69062.0,69061.0,1.20878217]
[1722098216514,0.0235644,69062.0,69061.0,1.20878217]
[1722098217354,0.0245644,69062.0,69061.0,1.22278217]
[1722098218309,0.0245644,69062.0,69061.0,1.19377217]
[1722098218983,0.00184,69062.0,69061.0,1.19377217]
[1722098219141,0.00184,69062.0,69061.0,1.17977217]
[1722098219337,0.00084,69062.0,69061.0,1.16577217]
[1722098219547,0.00084,69062.0,69061.0,1.17977217]
[1722098219773,0.00184,69062.0,69061.0,1.19377217]
[1722098219977,0.00184,69062.0,69061.0,1.17977217]
[1722098220129,0.00184,69062.0,69061.0,1.19377217]
[1722098221205,0.00184,69062.0,69061.0,0.90417317]
[1722098221411,0.00184,69062.0,69061.0,1.19377217]
[1722098222391,0.02456433,69062.0,69061.0,1.19377217]
[1722098222599,0.00184,69062.0,69061.0,1.19377217]
[1722098222813,0.436231,69062.0,69061.0,0.38657517]
[1722098223107,0.00184,69062.0,69061.0,0.32507517]
[1722098223521,0.146637,69062.0,69061.0,0.32507517]
[1722098223729,0.146637,69062.0,69061.0,0.32412795]
[1722098223929,0.146637,69062.0,69061.0,0.29612795]
[1722098224178,0.435231,69062.0,69061.0,0.31012795]
[1722098224421,0.436231,69062.0,69061.0,0.32212795]
[1722098225427,0.436231,69062.0,69061.0,0.30812795]
[1722098225631,0.435231,69062.0,69061.0,0.29612795]
[1722098225870,0.435231,69062.0,69061.0,0.31012795]
[1722098226065,0.4589577,69062.0,69061.0,0.32312795]
[1722098226739,0.0245667,69062.0,69061.0,0.75662695]
[1722098226942,0.0245667,69062.0,69061.0,0.90142595]
[1722098227146,0.00184,69062.0,69061.0,0.90142595]
[1722098227565,0.00184,69062.0,69061.0,0.46702795]
[1722098227768,0.00184,69062.0,69061.0,0.32312795]
[1722098227945,0.725825,69062.0,69061.0,0.32312795]
[1722098228123,0.436231,69062.0,69061.0,0.32312795]
[1722098228598,0.725825,69062.0,69061.0,0.32312795]
[1722098229024,0.725825,69062.0,69061.0,0.3166]
[1722098229177,1.098119,69062.0,69061.0,0.3166]
[1722098229377,1.452713,69062.0,69061.0,0.32313395]
[1722098229581,1.452713,69062.0,69061.0,0.3166]
[1722098230110,1.452713,69062.0,69061.0,0.3071]
[1722098230310,1.451713,69062.0,69061.0,0.2941]
[1722098230476,1.47444232,69062.0,69061.0,0.2801]
[1722098230676,1.451713,69062.0,69061.0,0.2821]
[1722098231081,1.451713,69062.0,69061.0,0.2861]
[1722098232262,1.162119,69062.0,69061.0,0.2861]
[1722098233267,1.17069693,69062.0,69061.0,0.2861]
[1722098233874,1.19342614,69062.0,69061.0,0.2861]
[1722098234468,1.48302014,69062.0,69061.0,0.2861]
[1722098235460,1.19342614,69062.0,69061.0,0.2861]
[1722098235810,1.19342614,69062.0,69061.0,0.2801]
[1722098236185,1.19642614,69062.0,69061.0,0.2801]
[1722098237441,0.75055421,69062.0,69061.0,0.2801]
[1722098239621,0.46096021,69062.0,69061.0,0.2801]
[1722098239904,0.46096021,69062.0,69061.0,0.346]
[1722098239905,0.438231,69062.0,69061.0,0.346]
[1722098240303,0.438231,69062.0,69061.0,0.3525596]
[1722098240304,0.148637,69062.0,69061.0,0.3525596]
[1722098240686,0.00384,69062.0,69061.0,0.3525596]
[1722098240885,0.148637,69062.0,69061.0,0.3525596]
[1722098241090,0.438231,69062.0,69061.0,0.3525596]
[1722098241386,0.148637,69062.0,69061.0,0.3525596]
[1722098241601,0.145637,69062.0,69061.0,0.3525596]
[1722098241810,0.146637,69062.0,69061.0,0.3615596]
[1722098242581,0.00184,69062.0,69061.0,0.3615596]
[1722098242722,0.14757117,69062.0,69061.0,0.3725596]
[1722098242923,0.17029902,69062.0,69061.0,0.3725596]
[1722098243119,0.146637,69062.0,69061.0,0.3725596]
[1722098244404,0.146637,69062.0,69061.0,0.3066596]
[1722098244405,0.436231,69062.0,69061.0,0.3066596]
[1722098245713,0.725825,69062.0,69061.0,0.3066596]
[1722098246563,0.74855271,69062.0,69061.0,0.3066596]
[1722098247353,0.16936471,69062.0,69061.0,0.3001]
[1722098247556,0.16936471,69062.0,69061.0,0.30665591]
[1722098247787,0.45895871,69062.0,69061.0,0.30665591]
[1722098248302,0.436231,69062.0,69061.0,0.30665591]
[1722098249117,0.725825,69062.0,69061.0,0.30665591]
[1722098249324,0.725825,69062.0,69061.0,0.3001]
[1722098249520,0.725825,69062.0,69061.0,0.30665591]
[1722098251732,0.74855268,69062.0,69061.0,0.30665591]
[1722098253622,0.725825,69062.0,69061.0,0.30665591]
[1722098253781,0.74854256,69062.0,69061.0,0.30665591]
[1722098257053,0.77127024,69062.0,69061.0,0.30665591]
[1722098260487,0.74854256,69062.0,69061.0,0.30665591]
[1722098262344,0.45894856,69062.0,69061.0,0.38865591]
[1722098263822,0.48167624,69062.0,69061.0,0.38865591]
[1722098264243,0.45894856,69062.0,69061.0,0.38865591]
[1722098265090,0.45894856,69062.0,69061.0,0.30665591]
[1722098265846,0.74854256,69062.0,69061.0,0.30665591]
[1722098265998,0.45894856,69062.0,69061.0,0.30665591]
[1722098267047,0.48167624,69062.0,69061.0,0.30665591]
[1722098267529,0.77127024,69062.0,69061.0,0.30665591]
[1722098267976,0.74854256,69062.0,69061.0,0.30665591]
[1722098268141,0.16935456,69062.0,69061.0,0.30665591]
[1722098268346,0.45894856,69062.0,69061.0,0.30665591]
[1722098268893,0.16935456,69062.0,69061.0,0.30665591]
[1722098269107,0.02455756,69062.0,69061.0,0.30665591]
[1722098269327,0.02455756,69062.0,69061.0,0.88865391]
[1722098269535,0.02455756,69062.0,69061.0,0.59905491]
[1722098269740,0.00184,69062.0,69061.0,0.45425591]
[1722098270581,0.725825,69062.0,69061.0,0.30665591]
[1722098270772,0.436231,69062.0,69061.0,0.30665591]
[1722098271015,0.436231,69062.0,69061.0,0.3001]
[1722098271234,0.436231,69062.0,69061.0,0.30665887]
[1722098275028,0.436231,69062.0,69061.0,0.30758287]
[1722098275669,0.45895815,69062.0,69061.0,0.30758287]
[1722098276988,0.436231,69062.0,69061.0,0.30758287]
[1722098277436,0.146637,69062.0,69061.0,0.30758287]
[1722098279074,0.436231,69062.0,69061.0,0.30758287]
[1722098280510,0.45895808,69062.0,69061.0,0.30758287]
[1722098282915,0.82435208,69062.0,69061.0,0.30758287]
[1722098283075,0.53475808,69062.0,69061.0,0.30758287]
[1722098283293,0.53498132,69062.0,69061.0,0.30758287]
[1722098283487,0.53475808,69062.0,69061.0,0.301024]
[1722098283892,0.53475808,69062.0,69061.0,0.30757443]
[1722098284297,0.45895808,69062.0,69061.0,0.30757443]
[1722098284894,0.4596449,69062.0,69061.0,0.30757443]
[1722098285095,0.45895808,69062.0,69061.0,0.30757443]
[1722098285496,0.74855208,69062.0,69061.0,0.30757443]
[1722098286717,1.03814608,69062.0,69061.0,0.30757443]
[1722098287117,1.03814608,69062.0,69061.0,0.301024]
[1722098288013,0.74855208,69062.0,69061.0,0.301024]
[1722098288196,0.74855208,69062.0,69061.0,0.31086815]
[1722098289427,1.03814608,69062.0,69061.0,0.31086815]
[1722098289632,1.10384608,69062.0,69061.0,0.31086815]
[1722098290642,0.74855208,69062.0,69061.0,0.31086815]
[1722098292242,0.74935144,69062.0,69061.0,0.31086815]
[1722098292418,0.74855208,69062.0,69061.0,0.31086815]
[1722098293057,1.03814608,69062.0,69061.0,0.31086815]
[1722098293397,1.015419,69062.0,69061.0,0.31086815]
[1722098297067,1.03814678,69062.0,69061.0,0.31086815]
[1722098297298,1.015419,69062.0,69061.0,0.31086815]
[1722098298717,0.725825,69062.0,69061.0,0.29986815]
[1722098298925,0.810525,69062.0,69061.0,0.29986815]
[1722098299289,0.811525,69062.0,69061.0,0.29186815]
[1722098299484,0.823525,69062.0,69061.0,0.29286815]
[1722098299847,0.821525,69062.0,69061.0,0.29086815]
[1722098300188,0.822525,69062.0,69061.0,0.29086815]
[1722098300349,0.822525,69062.0,69061.0,0.29286815]
[1722098300548,0.84525278,69062.0,69061.0,0.29286815]
[1722098301236,0.84525278,69062.0,69061.0,0.35826815]
[1722098302492,0.76055278,69062.0,69061.0,0.35826815]
[1722098302644,0.84525278,69062.0,69061.0,0.35826815]
[1722098302987,0.18136478,69062.0,69061.0,0.35826815]
[1722098303284,0.47095878,69062.0,69061.0,0.348424]
[1722098303518,0.18136478,69062.0,69061.0,0.35827435]
[1722098304055,0.03656778,69062.0,69061.0,0.35627435]
[1722098304484,0.02356778,69062.0,69061.0,0.35627435]
[1722098304855,0.02456778,69062.0,69061.0,0.36527435]
[1722098305793,0.02456778,69062.0,69061.0,0.37627435]
[1722098306576,0.00184,69062.0,69061.0,0.37627435]
[1722098308616,0.146637,69062.0,69061.0,0.37627435]
[1722098308819,0.00184,69062.0,69061.0,0.37627435]
[1722098309599,0.146637,69062.0,69061.0,0.37627435]
[1722098311650,0.00184,69062.0,69061.0,0.37627435]
[1722098311972,0.00184,69062.0,69061.0,0.52107335]
[1722098312327,0.00184,69062.0,69061.0,0.81067235]
[1722098313907,0.02456687,69062.0,69061.0,0.81067235]
[1722098315330,0.02456687,69062.0,69061.0,0.52107335]
[1722098318335,0.00184,69062.0,69061.0,0.52107335]
[1722098321707,0.02456667,69062.0,69061.0,0.52107335]
[1722098322273,0.02456667,69062.0,69061.0,0.81067235]
[1722098323829,0.02456667,69062.0,69061.0,0.52107335]
[1722098324047,0.02456667,69062.0,69061.0,0.81067235]
[1722098324362,0.04723684,69062.0,69061.0,0.81067235]
[1722098324749,0.04723684,69062.0,69061.0,1.10027135]
[1722098324930,0.04723684,69062.0,69061.0,0.81067235]
[1722098325538,0.04723684,69062.0,69061.0,0.37627435]
[1722098325755,0.04723684,69062.0,69061.0,0.37626956]
[1722098325966,0.04723684,69062.0,69061.0,0.52106856]
[1722098326240,0.04723684,69062.0,69061.0,0.81066756]
[1722098326658,0.04723684,69062.0,69061.0,0.37626956]
[1722098326826,0.04723684,69062.0,69061.0,0.31086956]
[1722098327053,0.16930717,69062.0,69061.0,0.31086956]
[1722098327687,0.45890117,69062.0,69061.0,0.31086956]
[1722098328584,0.16930717,69062.0,69061.0,0.31086956]
[1722098331966,0.17024134,69062.0,69061.0,0.31086956]
[1722098332164,0.16930717,69062.0,69061.0,0.31086956]
[1722098332838,0.45890117,69062.0,69061.0,0.31086956]
[1722098333251,0.45890117,69062.0,69061.0,0.301024]
[1722098333471,0.45890117,69062.0,69061.0,0.31086956]
[1722098334062,0.16930717,69062.0,69061.0,0.31086956]
[1722098335400,0.45890117,69062.0,69061.0,0.31086956]
[1722098335869,0.16930717,69062.0,69061.0,0.31086956]
[1722098336086,0.45890117,69062.0,69061.0,0.31086956]
[1722098338365,0.48162836,69062.0,69061.0,0.31086956]
[1722098338572,0.77122236,69062.0,69061.0,0.31086956]
[1722098338792,0.74849517,69062.0,69061.0,0.31086956]
[1722098339172,0.02451017,69062.0,69061.0,0.45196956]
[1722098339378,0.02451017,69062.0,69061.0,0.59676856]
[1722098340016,0.02451017,69062.0,69061.0,0.45196956]
[1722098340419,0.02451017,69062.0,69061.0,0.59676856]
[1722098340620,0.02451017,69062.0,69061.0,1.17596656]
[1722098341042,0.02451017,69062.0,69061.0,1.18094405]
[1722098341599,0.04723639,69062.0,69061.0,1.18094405]
[1722098343152,0.02451017,69062.0,69061.0,1.18094405]
[1722098343783,0.00184,69062.0,69061.0,1.18094405]
[1722098345615,0.02450904,69062.0,69061.0,1.18094405]
[1722098345974,0.02390904,69062.0,69061.0,1.18094405]
[1722098346587,0.02396626,69062.0,69061.0,1.18094405]
[1722098351387,0.00124,69062.0,69061.0,1.18094405]
[1722098354749,0.02396585,69062.0,69061.0,1.18094405]
[1722098355748,0.02390956,69062.0,69061.0,1.18094405]
[1722098357565,0.00124,69062.0,69061.0,1.47054305]
[1722098358442,0.00124,69062.0,69061.0,1.45954305]
[1722098359054,0.02296563,69062.0,69061.0,1.46354305]
[1722098359858,0.02296563,69062.0,69061.0,1.7964665]
[1722098360221,0.02296563,69062.0,69061.0,2.09177198]
[1722098360347,0.02396563,69062.0,69061.0,2.01518463]
[1722098360541,0.02396563,69062.0,69061.0,2.00218463]
[1722098360951,0.02396563,69062.0,69061.0,2.10274549]
[1722098361174,0.02396563,69062.0,69061.0,2.01615919]
[1722098361426,0.02396563,69062.0,69061.0,2.08108678]
[1722098362937,0.00124,69062.0,69061.0,2.08108678]
[1722098363142,0.00024,69062.0,69061.0,1.7497995]
[1722098363679,0.00024,69062.0,69061.0,1.7637995]
[1722098364231,0.00024,69062.0,69061.0,1.69887191]
[1722098364401,0.00024,69062.0,69061.0,1.76379345]
[1722098364852,0.00024,69062.0,69061.0,1.69886586]
[1722098366119,0.02296424,69062.0,69061.0,1.69886586]
[1722098367338,0.00024,69062.0,69061.0,1.69886586]
[1722098367556,0.00024,69062.0,69061.0,1.57854305]
[1722098367778,0.00024,69062.0,69061.0,1.69886527]
[1722098370263,0.00024,69062.0,69061.0,1.74214337]
[1722098370629,0.02296424,69062.0,69061.0,1.74214337]
[1722098371032,0.02296424,69062.0,69061.0,1.74214138]
[1722098371234,0.00024,69062.0,69061.0,1.74214138]
[1722098372958,0.00024,69062.0,69061.0,2.02014589]
[1722098374319,0.02296444,69062.0,69061.0,1.57854305]
[1722098374543,0.02296444,69062.0,69061.0,2.02013851]
[1722098374980,0.02296444,69062.0,69061.0,1.69885934]
[1722098375183,0.02296444,69062.0,69061.0,1.7421205]
[1722098377723,0.02296444,69062.0,69061.0,1.7421154]
[1722098378950,0.02296444,69062.0,69061.0,1.69886433]
[1722098379735,0.00024,69062.0,69061.0,1.69886433]
[1722098380754,0.00024,69062.0,69061.0,1.7421154]
[1722098380952,0.00024,69062.0,69061.0,1.6988659]
[1722098381217,0.00024,69062.0,69061.0,1.74212332]
[1722098383012,0.02296466,69062.0,69061.0,1.74212332]
[1722098383568,0.02296466,69062.0,69061.0,1.6988659]
[1722098384381,0.02296466,69062.0,69061.0,1.57854305]
[1722098384605,0.02296466,69062.0,69061.0,1.69886923]
[1722098384803,0.02296466,69062.0,69061.0,1.57854305]
[1722098384976,0.02296466,69062.0,69061.0,1.69886923]
[1722098385583,0.02296466,69062.0,69061.0,1.74214918]
[1722098387820,0.02296466,69062.0,69061.0,1.74215761]
[1722098391014,0.02296466,69062.0,69061.0,1.62183143]
[1722098391214,0.02296466,69062.0,69061.0,1.74215761]
[1722098392180,0.00024,69062.0,69061.0,1.74215761]
[1722098394139,0.00024,69062.0,69061.0,1.69886923]
[1722098394706,0.00024,69062.0,69061.0,1.74216715]
[1722098395159,0.02296485,69062.0,69061.0,1.74216715]
[1722098395363,0.02296485,69062.0,69061.0,1.69886923]
[1722098396056,0.00024,69062.0,69061.0,1.69886923]
[1722098398315,0.00024,69062.0,69061.0,1.76384433]
[1722098398531,0.00024,69062.0,69061.0,1.30927023]
[1722098398943,0.00024,69062.0,69061.0,1.22937023]
[1722098399101,0.00024,69062.0,69061.0,1.16817023]
[1722098399301,0.02296511,69062.0,69061.0,1.16817023]
[1722098399516,0.39136211,69062.0,69061.0,0.32384705]
[1722098399731,0.70362587,69062.0,69061.0,0.32384705]
[1722098400159,0.99321987,69062.0,69061.0,0.309024]
[1722098400365,0.97049476,69062.0,69061.0,0.32177166]
[1722098400770,0.68090076,69062.0,69061.0,0.32177166]
[1722098401349,0.68183493,69062.0,69061.0,0.32177166]
[1722098401559,0.68183493,69062.0,69061.0,0.309024]
[1722098401758,0.68183493,69062.0,69061.0,0.32179263]
[1722098401958,0.39224093,69062.0,69061.0,0.32179263]
[1722098402156,0.10044393,69062.0,69061.0,0.32179263]
[1722098402401,0.02290976,69062.0,69061.0,0.32179263]
[1722098402840,0.02384393,69062.0,69061.0,0.32179263]
[1722098403445,0.02384393,69062.0,69061.0,0.46659163]
[1722098403625,0.02290976,69062.0,69061.0,0.83709063]
[1722098403791,0.02296694,69062.0,69061.0,0.83709063]
[1722098403987,0.04563686,69062.0,69061.0,0.75619063]
[1722098404558,0.02296694,69062.0,69061.0,0.75619063]
[1722098404765,0.00024,69062.0,69061.0,0.75619063]
[1722098405750,0.00024,69062.0,69061.0,1.04578963]
[1722098407169,0.02296618,69062.0,69061.0,1.04578963]
[1722098407524,0.00024,69062.0,69061.0,1.04578963]
[1722098409226,0.02291013,69062.0,69061.0,1.04578963]
[1722098409373,0.00024,69062.0,69061.0,1.04578963]
[1722098410199,0.0229103,69062.0,69061.0,1.04578963]
[1722098410451,0.04563645,69062.0,69061.0,1.04578963]
[1722098411504,0.0229103,69062.0,69061.0,1.04578963]
[1722098411913,0.00024,69062.0,69061.0,1.04578963]
[1722098412817,0.00024,69062.0,69061.0,0.46659163]
[1722098413145,0.16770779,69062.0,69061.0,0.32179263]
[1722098413465,0.31210779,69062.0,69061.0,0.32179263]
[1722098414660,0.62410179,69062.0,69061.0,0.32179263]
[1722098415011,0.33450779,69062.0,69061.0,0.32179263]
[1722098415168,0.18971079,69062.0,69061.0,0.32179263]
[1722098415391,0.24980779,69062.0,69061.0,0.32179263]
[1722098416608,0.53940179,69062.0,69061.0,0.32179263]
[1722098417341,0.227137,69062.0,69061.0,0.32179263]
[1722098417478,0.24980759,69062.0,69061.0,0.32179263]
[1722098418612,0.53940159,69062.0,69061.0,0.32179263]
[1722098419963,0.56212854,69062.0,69061.0,0.32179263]
[1722098420715,0.93642254,69062.0,69061.0,0.32179263]
[1722098420918,0.64682854,69062.0,69061.0,0.32179263]
[1722098421122,0.64682854,69062.0,69061.0,0.309024]
[1722098421344,0.64682854,69062.0,69061.0,0.32184154]
[1722098422349,0.56212854,69062.0,69061.0,0.32184154]
[1722098422590,0.53940159,69062.0,69061.0,0.32184154]
[1722098424455,0.91369559,69062.0,69061.0,0.32184154]
[1722098424703,1.26558959,69062.0,69061.0,0.32184154]
[1722098425103,1.18088959,69062.0,69061.0,0.309024]
[1722098425480,1.18088959,69062.0,69061.0,0.31979293]
[1722098425683,1.20361689,69062.0,69061.0,0.30579293]
[1722098425883,1.18088959,69062.0,69061.0,0.29179293]
[1722098426203,1.18088959,69062.0,69061.0,0.30179293]
[1722098426551,1.18088959,69062.0,69061.0,0.29879293]
[1722098426773,1.11858959,69062.0,69061.0,0.29179293]
[1722098426982,1.11858959,69062.0,69061.0,0.29979293]
[1722098427504,1.11858959,69062.0,69061.0,0.31079293]
[1722098428977,0.02291059,69062.0,69061.0,0.31079293]
[1722098429189,0.4800288,69062.0,69061.0,0.31079293]
[1722098429386,0.1904348,69062.0,69061.0,0.31079293]
[1722098429592,0.16770759,69062.0,69061.0,0.31079293]
[1722098431120,0.02291059,69062.0,69061.0,0.31079293]
[1722098431326,0.16770759,69062.0,69061.0,0.31079293]
[1722098432027,0.16770759,69062.0,69061.0,0.31657434]
[1722098432399,0.02291059,69062.0,69061.0,0.31657434]
[1722098432603,0.02384476,69062.0,69061.0,0.31657434]
[1722098433005,0.04657165,69062.0,69061.0,0.31657434]
[1722098433207,0.04563748,69062.0,69061.0,0.31657434]
[1722098433334,0.04657165,69062.0,69061.0,0.31657434]
[1722098433963,0.02291059,69062.0,69061.0,0.31657434]
[1722098434193,0.02384476,69062.0,69061.0,0.31657434]
[1722098434362,0.02384476,69062.0,69061.0,0.46137334]
[1722098434562,0.02291059,69062.0,69061.0,0.31657434]
[1722098434954,0.02384476,69062.0,69061.0,0.31657434]
[1722098435175,0.02291059,69062.0,69061.0,0.31657434]
[1722098435370,0.02384476,69062.0,69061.0,0.31657434]
[1722098436172,0.16864176,69062.0,69061.0,0.31657434]
[1722098436462,0.16770759,69062.0,69061.0,0.31657434]
[1722098437282,0.19043441,69062.0,69061.0,0.31657434]
[1722098438094,0.16770759,69062.0,69061.0,0.31657434]
[1722098438311,0.45730159,69062.0,69061.0,0.31657434]
[1722098441429,0.48002851,69062.0,69061.0,0.31657434]
[1722098445745,0.45730159,69062.0,69061.0,0.31657434]
[1722098448932,0.48002851,69062.0,69061.0,0.31657434]
[1722098449137,0.19043451,69062.0,69061.0,0.31657434]
[1722098449419,0.48002851,69062.0,69061.0,0.31657434]
[1722098449821,0.45730159,69062.0,69061.0,0.31657434]
[1722098452105,0.48002851,69062.0,69061.0,0.31657434]
[1722098452819,0.16770759,69062.0,69061.0,0.31657434]
[1722098454729,0.45730159,69062.0,69061.0,0.31657434]
[1722098455730,0.16770759,69062.0,69061.0,0.31657434]
[1722098456128,0.19043451,69062.0,69061.0,0.31657434]
[1722098456332,0.19043451,69062.0,69061.0,0.39967434]
[1722098457324,0.16770759,69062.0,69061.0,0.39967434]
[1722098460634,0.19043447,69062.0,69061.0,0.39967434]
[1722098460852,0.16770759,69062.0,69061.0,0.39967434]
[1722098465493,0.19043447,69062.0,69061.0,0.39967434]
[1722098465876,0.16770759,69062.0,69061.0,0.39967434]
[1722098467666,0.45730159,69062.0,69061.0,0.31657434]
[1722098467867,0.53500159,69062.0,69061.0,0.31657434]
[1722098468407,0.45730159,69062.0,69061.0,0.31657434]
[1722098468565,0.48002851,69062.0,69061.0,0.31657434]
[1722098470083,0.45730159,69062.0,69061.0,0.31657434]
[1722098473275,0.48002851,69062.0,69061.0,0.31657434]
[1722098473537,0.45730159,69062.0,69061.0,0.31657434]
[1722098476920,0.48002851,69062.0,69061.0,0.31657434]
[1722098477700,0.19043451,69062.0,69061.0,0.31657434]
[1722098479229,0.19043451,69062.0,69061.0,0.38227434]
[1722098483268,0.48002851,69062.0,69061.0,0.38227434]
[1722098484297,0.19043451,69062.0,69061.0,0.38227434]
[1722098484507,0.04563751,69062.0,69061.0,0.38227434]
[1722098484705,0.04563751,69062.0,69061.0,1.31410977]
[1722098484908,0.00024,69062.0,69061.0,1.74576021]
[1722098485110,0.00024,69062.0,69061.0,2.08879088]
[1722098485507,0.00024,69062.0,69061.0,2.08872064]
[1722098485731,0.00024,69062.0,69061.0,1.72667042]
[1722098486110,0.00024,69062.0,69061.0,1.74067042]
[1722098486312,0.00024,69062.0,69061.0,1.66159848]
[1722098486588,0.00024,69062.0,69061.0,1.7049693]
[1722098486861,0.00024,69062.0,69061.0,1.7189693]
[1722098487090,0.00024,69062.0,69061.0,1.67559848]
[1722098487308,0.00024,69062.0,69061.0,1.71896878]
[1722098487583,0.00024,69062.0,69061.0,1.18097134]
[1722098487929,0.00024,69062.0,69061.0,1.19497134]
[1722098488130,0.02296488,69062.0,69061.0,1.19497134]
[1722098488442,0.02296488,69062.0,69061.0,1.18988897]